fUST/lending_fUST_20240122
["ID","MTS","AMOUNT","RATE_DAILY","PERIOD"]
[312500609,1705935041139,-557.3938328,0.00026699,2]
[312500611,1705935041148,-500.0,0.00026699,2]
[312500613,1705935041157,-500.0,0.00026699,2]
[312500615,1705935041167,-500.0,0.00026699,2]
[312500617,1705935041176,-500.0,0.00026699,2]
[312500619,1705935041185,-500.0,0.00026699,2]
[312500621,1705935041194,-500.0,0.00026699,2]
[312500623,1705935041203,-500.0,0.00026699,2]
[312500625,1705935041212,-500.0,0.00026699,2]
[312500627,1705935041221,-500.0,0.00026699,2]
[312500629,1705935041231,-500.0,0.00026699,2]
[312500631,1705935041240,-200.0,0.00026699,2]
[312500633,1705935041255,-500.0,0.00026699,2]
[312500635,1705935041265,-363.73254673,0.00026699,2]
[312500637,1705935041274,-500.0,0.00026699,2]
[312500639,1705935041285,-500.0,0.00026699,2]
[312500641,1705935041295,-500.0,0.00026699,2]
[312500643,1705935041305,-500.0,0.00026699,2]
[312500645,1705935041314,-500.0,0.00026699,2]
[312500647,1705935041323,-500.0,0.00026699,2]
[312500649,1705935041332,-500.0,0.00026699,2]
[312500651,1705935041341,-500.0,0.00026699,2]
[312500653,1705935041352,-9757.92282386,0.000267,2]
[312500655,1705935041362,-290.32272867,0.00027,2]
[312500657,1705935041371,-2807.0,0.00027,2]
[312500660,1705935041380,-155.0,0.00027397,2]
[312500663,1705935041389,-500.0,0.00027397,2]
[312500666,1705935041399,-400.0,0.00027397,2]
[312500668,1705935041407,-26976.72,0.00027397,3]
[312500670,1705935041416,-18237.22,0.00027397,3]
[312500672,1705935041425,-22066.75,0.00027397,3]
[312500674,1705935041434,-18388.96,0.00027397,3]
[312500676,1705935041443,-15324.13,0.00027397,3]
[312500678,1705935041452,-500.0,0.00027534,2]
[312500680,1705935041461,-154.95351395,0.00027547,2]
[312500682,1705935041471,-500.0,0.00027671,2]
[312500684,1705935041480,-9121.34550853,0.0002775,4]
[312500686,1705935041489,-500.0,0.00027808,2]
[312500688,1705935041502,-500.0,0.00027945,2]
[312500690,1705935041512,-483.67467571,0.00028,2]
[312500692,1705935041521,-1500.0,0.00028,2]
[312500694,1705935041529,-500.0,0.00028082,2]
[312500696,1705935041538,-500.0,0.00028219,2]
[312500698,1705935041547,-500.0,0.00028356,2]
[312500700,1705935041556,-500.0,0.00028493,2]
[312500702,1705935041565,-500.0,0.0002863,2]
[312500704,1705935041574,-166.49347399,0.00028747,2]
[312500706,1705935041583,-161.62033484,0.00028748,2]
[312500708,1705935041592,-261.58936724,0.00028748,2]
[312500710,1705935041601,-763.99864371,0.00028748,2]
[312500712,1705935041610,-5000.0,0.00028767,5]
[312500714,1705935041619,-155.0,0.00028767,2]
[312500716,1705935041629,-500.0,0.00028767,2]
[312500718,1705935041637,-570.183189,0.00028767,2]
[312500720,1705935041647,-161.4145,0.00028767,2]
[312500722,1705935041656,-5000.0,0.00028799,5]
[312500724,1705935041665,-49458.14509731,0.00028799,5]
[312500726,1705935041674,-31986.91125106,0.00028799,5]
[312500728,1705935041683,-79818.78816202,0.00028799,5]
[312500730,1705935041692,-1023.43666286,0.00028799,2]
[312500732,1705935041701,-500.0,0.00028799,4]
[312500734,1705935041710,-500.0,0.00028799,4]
[312500736,1705935041719,-438.17612016,0.00028799,4]
[312500738,1705935041728,-500.0,0.00028799,4]
[312500739,1705935041737,-500.0,0.00028799,4]
[312500741,1705935041749,-500.0,0.00028799,4]
[312500743,1705935041759,-500.0,0.00028799,4]
[312500745,1705935041768,-500.0,0.00028799,4]
[312500747,1705935041777,-500.0,0.00028799,4]
[312500749,1705935041787,-500.0,0.00028799,4]
[312500751,1705935041796,-500.0,0.00028799,4]
[312500753,1705935041805,-500.0,0.00028799,4]
[312500755,1705935041814,-500.0,0.00028799,4]
[312500757,1705935041824,-500.0,0.00028799,4]
[312500760,1705935041835,-356.27367477,0.00028799,4]
[312500762,1705935041846,-500.0,0.00028799,4]
[312500764,1705935041856,-500.0,0.00028799,4]
[312500765,1705935041865,-500.0,0.00028799,4]
[312500767,1705935041875,-500.0,0.00028799,4]
[312500770,1705935041885,-500.0,0.00028799,4]
[312500771,1705935041894,-500.0,0.00028799,4]
[312500773,1705935041904,-273.71484549,0.00028799,4]
[312500775,1705935041913,-500.0,0.00028799,4]
[312500777,1705935041923,-201.40863172,0.00028799,4]
[312500780,1705935041932,-500.0,0.00028799,4]
[312500782,1705935041942,-500.0,0.00028799,4]
[312500783,1705935041951,-500.0,0.00028799,4]
[312500785,1705935041960,-500.0,0.00028799,4]
[312500787,1705935041969,-500.0,0.00028799,4]
[312500789,1705935041979,-500.0,0.00028799,4]
[312500791,1705935041988,-500.0,0.00028799,4]
[312500793,1705935041999,-500.0,0.00028799,4]
[312500795,1705935042008,-500.0,0.00028799,4]
[312500808,1705935042127,-500.0,0.00028799,4]
[312500810,1705935042138,-500.0,0.00028799,4]
[312500812,1705935042149,-500.0,0.00028799,4]
[312500814,1705935042168,-500.0,0.00028799,4]
[312500816,1705935042179,-606.57777736,0.00028799,4]
[312500818,1705935042190,-500.0,0.00028799,4]
[312500820,1705935042201,-500.0,0.00028799,4]
[312500822,1705935042212,-151.4697106,0.00028942,2]
[312500824,1705935042223,-309.24208868,0.00029,2]
[312500827,1705935042236,-1880.79357717,0.00029,2]
[312500828,1705935042247,-154.95351395,0.00029,10]
[312500829,1705935042270,-1500.0,0.00029,2]
[312500830,1705935042282,-150.0,0.0002926,2]
[312500831,1705935042294,-151.0,0.00029293,2]
[312500833,1705935042306,-576.0,0.000293,2]
[312500836,1705935042317,-647.26856209,0.00029434,2]
[312500838,1705935042328,-570.183189,0.00029648,2]
[312500839,1705935042339,-160.916191,0.00029715,2]
[312500840,1705935042350,-151.0,0.00029787,2]
[312500841,1705935042360,-3058.00775892,0.0002979,7]
[312500842,1705935042373,-5000.0,0.00029863,2]
[312500843,1705935042384,-38616.90105308,0.000299,2]
[312500844,1705935042394,-14240.30205581,0.00029981,2]
[312500845,1705935042405,-2670.05663546,0.00029981,2]
[312500846,1705935042415,-373.60878451,0.00029981,2]
[312500847,1705935042427,-570.54674761,0.00029981,2]
[312500848,1705935042437,-343.74277842,0.00029981,2]
[312500850,1705935042447,-2371.37507479,0.0003,2]
[312500852,1705935042458,-464.67563146,0.0003,2]
[312500854,1705935042468,-244.14912804,0.0003,4]
[312500856,1705935042477,-657.40715545,0.0003,3]
[312500858,1705935042487,-1200.0,0.0003,4]
[312500860,1705935042502,-283.25593542,0.0003,3]
[312500863,1705935042516,-224500.32309945,0.0003,4]
[312500891,1705935042627,-10202.84952288,0.0003,4]
[312500894,1705935042638,-14918.10522686,0.0003,4]
[312500899,1705935042657,-35623.15601671,0.0003,4]
[312500902,1705935042666,-335.8809362,0.0003,4]
[312500904,1705935042677,-686.79918076,0.0003,4]
[312500908,1705935042687,-304.15955042,0.0003,4]
[312500911,1705935042696,-12694.1187658,0.0003,2]
[312500914,1705935042706,-163.99507137,0.0003,5]
[312500917,1705935042715,-300.0,0.0003,14]
[312500919,1705935042725,-1055.41290667,0.0003,4]
[312500922,1705935042734,-1500.0,0.0003,2]
[312500926,1705935042744,-1500.0,0.0003,2]
[312500929,1705935042762,-1500.0,0.0003,2]
[312500932,1705935042771,-1500.0,0.0003,2]
[312500934,1705935042782,-1500.0,0.0003,2]
[312500937,1705935042791,-1615.19,0.0003,2]
[312500940,1705935042800,-1500.0,0.0003,2]
[312500943,1705935042810,-288.0,0.0003,2]
[312500946,1705935042820,-309.6260754,0.00030137,2]
[312500949,1705935042829,-199.1966855,0.00030137,2]
[312500952,1705935042839,-199.1966855,0.00030137,2]
[312500955,1705935042848,-199.1966855,0.00030137,2]
[312500958,1705935042857,-199.1966855,0.00030137,2]
[312500961,1705935042866,-153.0,0.00030137,2]
[312500963,1705935042876,-157.894736,0.00030137,2]
[312500966,1705935042886,-155.0,0.00030137,2]
[312500969,1705935042896,-1000.0,0.00030223,2]
[312500972,1705935042906,-1000.0,0.00030224,2]
[312500975,1705935042916,-1000.0,0.00030236,2]
[312500978,1705935042926,-1000.0,0.00030243,2]
[312500981,1705935042936,-1000.0,0.0003026,2]
[312500984,1705935042946,-1000.0,0.00030281,2]
[312500987,1705935042955,-151.0,0.00030282,2]
[312500990,1705935042965,-399.05598454,0.00030285,2]
[312500993,1705935042974,-1000.0,0.00030285,2]
[312500996,1705935042984,-1000.0,0.00030294,2]
[312500999,1705935042994,-1000.0,0.00030308,2]
[312501002,1705935043009,-151.0,0.00030312,2]
[312501005,1705935043018,-1000.0,0.00030335,2]
[312501008,1705935043028,-1000.0,0.00030339,2]
[312501011,1705935043038,-1000.0,0.00030371,2]
[312501015,1705935043048,-1000.0,0.00030382,2]
[312501018,1705935043057,-1000.0,0.00030384,2]
[312501022,1705935043066,-1000.0,0.00030399,2]
[312501026,1705935043076,-1000.0,0.00030413,2]
[312501030,1705935043086,-1000.0,0.00030445,2]
[312501036,1705935043096,-200.0,0.000305,4]
[312501038,1705935043105,-570.183189,0.00030528,2]
[312501041,1705935043116,-157.894736,0.00030746,2]
[312501044,1705935043125,-1061.29286357,0.00030774,2]
[312501046,1705935043135,-151.0,0.00030777,2]
[312501049,1705935043145,-621.3634281,0.00030906,2]
[312501052,1705935043156,-300.40206867,0.00030908,2]
[312501055,1705935043165,-22969.28133794,0.00031,2]
[312501060,1705935043177,-2303.4251297,0.00031,2]
[312501104,1705935043423,-154.95351395,8.901e-05,2]
[312501108,1705935043433,-265.48221302,8.902e-05,2]
[312501111,1705935043442,-178.91876323,8.902e-05,2]
[312501112,1705935043451,-20874.58230083,8.904e-05,2]
[312501115,1705935043461,-154.95351395,8.904e-05,2]
[312501119,1705935043471,-154.95351395,8.904e-05,2]
[312501123,1705935043481,-1000.0,0.00013698,2]
[312501126,1705935043493,-658.01913901,0.00013698,2]
[312501129,1705935043507,-500.0,0.00026699,2]
[312501132,1705935043517,-12770.11,0.00027397,3]
[312501135,1705935043527,-59103.85734304,0.00031,2]
[312501152,1705935043611,-500.0,0.00026699,2]
[312501155,1705935043621,-378.0,0.00026699,2]
[312501550,1705935053441,5078.73775809,8.813e-05,2]
[312501551,1705935055766,21686.1459775,8.813e-05,2]
[312501555,1705935069445,205.38414562,8.811e-05,2]
[312501587,1705935075749,21686.1459775,8.81e-05,2]
[312502947,1705935124708,977.70118808,8.005e-05,2]
[312503635,1705935145601,-8761.98403332,8.894e-05,2]
[312503636,1705935145620,-2039.05381066,8.894e-05,2]
[312503637,1705935145641,-20874.58230083,8.894e-05,2]
[312503638,1705935145661,-561.64006482,8.895e-05,2]
[312503639,1705935145681,-1741.02914519,8.895e-05,2]
[312503640,1705935145701,-1242.55121556,8.895e-05,2]
[312503641,1705935145721,-616.7500659,8.895e-05,2]
[312503643,1705935145741,-154.95351395,8.895e-05,2]
[312503644,1705935145761,-81207.38465248,8.895e-05,2]
[312503646,1705935145781,-166.67526662,8.895e-05,2]
[312503648,1705935145801,-265.48221302,8.895e-05,2]
[312503650,1705935145821,-20902.38645894,8.895e-05,2]
[312503651,1705935145845,-154.95351395,8.896e-05,2]
[312503653,1705935145865,-595.13721922,8.896e-05,2]
[312503655,1705935145885,-199.25222227,8.896e-05,2]
[312503657,1705935145906,-526.75292248,8.896e-05,2]
[312503658,1705935145927,-522.11697668,8.896e-05,2]
[312503660,1705935145948,-154.95351395,8.896e-05,2]
[312503662,1705935145969,-13719.8221343,8.896e-05,2]
[312503663,1705935145989,-211.53795191,8.896e-05,2]
[312503665,1705935146010,-680.10116762,8.896e-05,2]
[312503667,1705935146030,-178.91876323,8.896e-05,2]
[312503669,1705935146051,-154.95351395,8.896e-05,2]
[312503670,1705935146071,-154.95351395,8.896e-05,2]
[312503672,1705935146093,-1439.19025016,8.896e-05,2]
[312503674,1705935146115,-19701.14547142,8.896e-05,2]
[312503675,1705935146136,-154.95351395,8.897e-05,2]
[312503677,1705935146157,-175.22193864,8.897e-05,2]
[312503679,1705935146178,-260.87494487,8.897e-05,2]
[312503680,1705935146199,-294.88989743,8.897e-05,2]
[312503682,1705935146220,-4813.95392208,8.897e-05,2]
[312503684,1705935146242,-246.21885002,8.897e-05,2]
[312503685,1705935146263,-470.67463112,8.897e-05,2]
[312503687,1705935146284,-2073.9279871,8.897e-05,2]
[312503689,1705935146306,-903.63325516,8.898e-05,2]
[312503690,1705935146327,-154.95351395,8.898e-05,2]
[312503692,1705935146348,-161.02224773,8.898e-05,2]
[312503694,1705935146369,-243.13309117,8.898e-05,2]
[312503696,1705935146393,-15915.17297811,8.898e-05,2]
[312503697,1705935146414,-19867.27856324,8.898e-05,2]
[312503699,1705935146435,-18904.87156494,8.898e-05,2]
[312503701,1705935146456,-635.86742243,8.899e-05,2]
[312503703,1705935146477,-226.83109248,8.899e-05,2]
[312503704,1705935146498,-7363.2587092,8.899e-05,2]
[312506410,1705935247933,154.95351395,8.888e-05,2]
[312507030,1705935272256,166.67526662,8.888e-05,2]
[312507040,1705935272604,903.63325516,8.888e-05,2]
[312507049,1705935272861,595.13721922,8.888e-05,2]
[312507076,1705935273748,2039.05381066,8.888e-05,2]
[312507142,1705935276206,1439.19025016,8.888e-05,2]
[312507159,1705935276768,8761.98403332,8.888e-05,2]
[312507181,1705935277519,154.95351395,8.888e-05,2]
[312507200,1705935278187,4813.95392208,8.888e-05,2]
[312507204,1705935278285,522.11697668,8.888e-05,2]
[312507260,1705935280334,154.95351395,8.888e-05,2]
[312507274,1705935280773,154.95351395,8.888e-05,2]
[312507292,1705935281362,154.95351395,8.888e-05,2]
[312507333,1705935282894,246.21885002,8.888e-05,2]
[312507338,1705935283025,680.10116762,8.888e-05,2]
[312507361,1705935283786,260.87494487,8.888e-05,2]
[312507374,1705935284170,526.75292248,8.888e-05,2]
[312507421,1705935285758,616.7500659,8.888e-05,2]
[312507440,1705935286538,294.88989743,8.888e-05,2]
[312507444,1705935286655,161.02224773,8.888e-05,2]
[312507446,1705935286697,1293.76681809,8.888e-05,2]
[312507491,1705935288265,166.67526662,8.888e-05,2]
[312507529,1705935289745,2039.05381066,8.888e-05,2]
[312507531,1705935289785,81207.38465248,8.888e-05,2]
[312507535,1705935290101,1741.02914519,8.888e-05,2]
[312507556,1705935290870,595.13721922,8.888e-05,2]
[312507592,1705935292191,4813.95392208,8.888e-05,2]
[312507604,1705935292604,903.63325516,8.888e-05,2]
[312507623,1705935293254,21686.1459775,8.888e-05,2]
[312507632,1705935293529,219.30859808,8.888e-05,2]
[312507647,1705935294211,1439.19025016,8.888e-05,2]
[312507652,1705935294342,160.32397433,8.888e-05,2]
[312507667,1705935294780,165.84160101,8.888e-05,2]
[312507675,1705935295036,211.53795191,8.888e-05,2]
[312507701,1705935295930,15915.17297811,8.888e-05,2]
[312507710,1705935296219,154.95351395,8.888e-05,2]
[312507713,1705935296291,522.11697668,8.888e-05,2]
[312507731,1705935296908,246.21885002,8.888e-05,2]
[312507741,1705935297241,680.10116762,8.888e-05,2]
[312507752,1705935297588,199.25222227,8.888e-05,2]
[312507766,1705935298181,526.75292248,8.888e-05,2]
[312507774,1705935298441,265.48221302,8.888e-05,2]
[312507785,1705935298753,2034.57165769,8.888e-05,2]
[312507787,1705935298800,154.95351395,8.888e-05,2]
[312507803,1705935299367,154.95351395,8.888e-05,2]
[312507869,1705935301803,260.87494487,8.888e-05,2]
[312507871,1705935301845,616.7500659,8.888e-05,2]
[312507897,1705935302689,1293.3633064,8.888e-05,2]
[312507900,1705935302757,154.95351395,8.888e-05,2]
[312507930,1705935303744,81207.38465248,8.888e-05,2]
[312507932,1705935303787,2039.05381066,8.888e-05,2]
[312507955,1705935304556,294.88989743,8.888e-05,2]
[312507994,1705935306123,1741.02914519,8.888e-05,2]
[312508008,1705935306676,161.02224773,8.887e-05,2]
[312508026,1705935307277,2295.92899667,8.799e-05,2]
[312508092,1705935309681,154.95351395,0.00028,120]
[312508681,1705935329671,22.75557905,0.00028,120]
[312508682,1705935329697,132.1979349,0.00028,120]
[312509226,1705935349686,173.76764781,0.00028,120]
[312511386,1705936232016,-167.00483785,7.274e-05,2]
[312511387,1705936232026,-154.98450155,7.274e-05,2]
[312511388,1705936232035,-154.98450155,7.274e-05,2]
[312511389,1705936232045,-154.98450155,7.275e-05,2]
[312511390,1705936232055,-588.35431441,7.275e-05,2]
[312511391,1705936232064,-815.83734309,7.275e-05,2]
[312511392,1705936232076,-20870.30863441,7.275e-05,2]
[312511394,1705936232085,-711.772838,7.275e-05,2]
[312511396,1705936232095,-522.11697668,7.275e-05,2]
[312511398,1705936232104,-154.98450155,7.275e-05,2]
[312511399,1705936232114,-1696.62198985,7.275e-05,2]
[312511401,1705936232123,-2039.05381066,7.275e-05,2]
[312511403,1705936232133,-154.98450155,7.275e-05,2]
[312511405,1705936232142,-20902.38645894,7.275e-05,2]
[312511408,1705936232151,-329.53567279,7.276e-05,2]
[312511409,1705936232160,-1603.2097273,7.276e-05,2]
[312511411,1705936232170,-246.21885002,7.276e-05,2]
[312511414,1705936232180,-154.98450155,7.276e-05,2]
[312511417,1705936232191,-19701.14547142,7.276e-05,2]
[312511418,1705936232200,-5078.73775809,7.276e-05,2]
[312511420,1705936232210,-294.88989743,7.276e-05,2]
[312511422,1705936232220,-1242.55121556,7.277e-05,2]
[312511423,1705936232229,-616.7500659,7.277e-05,2]
[312511425,1705936232239,-526.75292248,7.277e-05,2]
[312511427,1705936232249,-323.59110907,7.277e-05,2]
[312511428,1705936232259,-3973.85906822,7.277e-05,2]
[312511430,1705936232268,-170.38743963,7.277e-05,2]
[312511431,1705936232277,-1253.41868812,7.277e-05,2]
[312511432,1705936232287,-154.98450155,7.278e-05,2]
[312511433,1705936232296,-154.98450155,7.278e-05,2]
[312511434,1705936232306,-261.13863683,7.278e-05,2]
[312511435,1705936232315,-154.98450155,7.278e-05,2]
[312511436,1705936232470,-156.02710907,7.278e-05,2]
[312511437,1705936232481,-154.98450155,7.278e-05,2]
[312511438,1705936232490,-154.98450155,7.278e-05,2]
[312511439,1705936232500,-175.22193864,7.279e-05,2]
[312511440,1705936232509,-154.98450155,7.279e-05,2]
[312511441,1705936232519,-154.98450155,7.279e-05,2]
[312511442,1705936232528,-154.98450155,7.279e-05,2]
[312511443,1705936232537,-18904.87156494,7.279e-05,2]
[312511444,1705936232547,-178.76422807,7.28e-05,2]
[312511445,1705936232557,-1579.39395429,7.28e-05,2]
[312511446,1705936232566,-13719.8221343,7.28e-05,2]
[312511447,1705936232576,-161.02224773,7.281e-05,2]
[312511448,1705936232585,-452.74208012,7.281e-05,2]
[312511449,1705936232594,-154.98450155,7.281e-05,2]
[312511450,1705936232603,-680.10116762,7.281e-05,2]
[312511451,1705936232612,-20874.58230083,7.281e-05,2]
[312511452,1705936232621,-154.98450155,7.282e-05,2]
[312511453,1705936232633,-154.98450155,7.282e-05,2]
[312511454,1705936232643,-595.13721922,7.282e-05,2]
[312511455,1705936232653,-265.48221302,7.282e-05,2]
[312511456,1705936232664,-1439.19025016,7.282e-05,2]
[312511457,1705936232674,-54182.67845845,7.282e-05,2]
[312511506,1705936238797,-154.98450155,7.274e-05,2]
[312511507,1705936238806,-36965.59360405,7.274e-05,2]
[312511508,1705936238815,-4813.95392208,7.274e-05,2]
[312511509,1705936238825,-27024.70619403,7.282e-05,2]
[312511510,1705936238834,-15915.17297811,7.282e-05,2]
[312511511,1705936238843,-19867.27856324,7.282e-05,2]
[312511512,1705936238853,-154.98450155,7.283e-05,2]
[312511513,1705936238862,-1993.49479484,7.283e-05,2]
[312511514,1705936238871,-154.98450155,7.283e-05,2]
[312511515,1705936238881,-2002.61413331,7.299e-05,2]
[312511516,1705936238890,-2002.61413331,7.299e-05,2]
[312511517,1705936238899,-2002.61413331,7.299e-05,2]
[312511518,1705936238908,-2002.61413331,7.299e-05,2]
[312511519,1705936238917,-2002.61413331,7.299e-05,2]
[312511520,1705936238926,-2002.61413331,7.299e-05,2]
[312511521,1705936238935,-2002.61413331,7.299e-05,2]
[312511522,1705936238946,-2002.61413331,7.299e-05,2]
[312511523,1705936238955,-2234.55897544,7.319e-05,2]
[312511524,1705936238964,-8761.98403332,7.388e-05,2]
[312511525,1705936238973,-2103.40493137,7.389e-05,2]
[312511526,1705936238983,-2073.9279871,7.389e-05,2]
[312511527,1705936238992,-470.67463112,7.389e-05,2]
[312511528,1705936239002,-154.95351395,7.395e-05,2]
[312511529,1705936239011,-1293.76681809,7.395e-05,2]
[312511530,1705936239020,-24900.0,7.397e-05,2]
[312511531,1705936239029,-215.98200691,7.992e-05,2]
[312511532,1705936239038,-309.51610563,7.992e-05,2]
[312511533,1705936239048,-307.60539626,7.992e-05,2]
[312511534,1705936239057,-156.45218725,7.995e-05,2]
[312511535,1705936239066,-3024.16310446,7.995e-05,2]
[312511536,1705936239075,-160.36108711,7.995e-05,2]
[312511537,1705936239085,-226.39153408,7.995e-05,2]
[312511538,1705936239094,-309.5529275,7.995e-05,2]
[312511539,1705936239103,-174.866365,7.995e-05,2]
[312511540,1705936239112,-161.06319152,7.995e-05,2]
[312511541,1705936239121,-301.40690811,7.995e-05,2]
[312511542,1705936239130,-251.17115687,7.995e-05,2]
[312511543,1705936239139,-200.0,7.995e-05,2]
[312511544,1705936239148,-298.40677269,7.995e-05,2]
[312511545,1705936239158,-203.88667215,7.995e-05,2]
[312511546,1705936239167,-302.84435405,7.995e-05,2]
[312511547,1705936239176,-156.33928042,7.995e-05,2]
[312511548,1705936239185,-309.81410224,7.995e-05,2]
[312511549,1705936239196,-6975.07964377,7.995e-05,2]
[312511550,1705936239206,-155.15114735,7.995e-05,2]
[312511551,1705936239215,-302.26715568,7.995e-05,2]
[312511552,1705936239224,-717.87855848,7.995e-05,2]
[312511553,1705936239233,-979.83497316,7.999e-05,2]
[312511554,1705936239243,-155.09769188,8e-05,2]
[312511555,1705936239252,-1741.02914519,8e-05,2]
[312511556,1705936239261,-2836.67729407,8.791e-05,2]
[312511557,1705936239270,-282.68327169,8.791e-05,2]
[312511559,1705936239279,-154.95351395,8.791e-05,2]
[312511560,1705936239290,-1816.48615871,8.791e-05,2]
[312511562,1705936239300,-176.80344435,8.791e-05,2]
[312511564,1705936239311,-154.95351395,8.791e-05,2]
[312511566,1705936239320,-176.33707755,8.791e-05,2]
[312511568,1705936239330,-309.87605268,8.791e-05,2]
[312511569,1705936239339,-11033.00619666,8.791e-05,2]
[312511571,1705936239348,-258.88009432,8.791e-05,2]
[312511572,1705936239357,-157.90368326,8.792e-05,2]
[312511573,1705936239367,-877.12356419,8.792e-05,2]
[312511575,1705936239376,-158.96191588,8.792e-05,2]
[312511576,1705936239386,-156.06983439,8.792e-05,2]
[312511577,1705936239396,-155.25728071,8.792e-05,2]
[312511578,1705936239405,-200.81357987,8.792e-05,2]
[312511579,1705936239414,-158.75094672,8.792e-05,2]
[312511580,1705936239423,-155.76848449,8.792e-05,2]
[312511581,1705936239432,-175.35139766,8.792e-05,2]
[312511582,1705936239443,-156.66918757,8.793e-05,2]
[312511583,1705936239453,-166.58282474,8.793e-05,2]
[312511584,1705936239462,-374.37859962,8.794e-05,2]
[312511585,1705936239471,-186.70689344,8.794e-05,2]
[312511586,1705936239482,-401.08260825,8.797e-05,2]
[312511587,1705936239491,-320.89748266,8.887e-05,2]
[312511588,1705936239500,-737.87935879,8.887e-05,2]
[312511589,1705936239509,-265.44404107,8.887e-05,2]
[312511590,1705936239519,-903.63325516,8.888e-05,2]
[312511591,1705936239528,-561.64006482,8.891e-05,2]
[312511592,1705936239537,-158.2592317,8.894e-05,2]
[312511593,1705936239546,-161.62033484,8.895e-05,2]
[312511594,1705936239555,-178.37323012,8.897e-05,2]
[312511595,1705936239564,-999.60015994,8.898e-05,2]
[312511596,1705936239574,-3746.05559912,8.898e-05,2]
[312511597,1705936239583,-269.91194615,8.898e-05,2]
[312511598,1705936239592,-185.41016331,9.82e-05,2]
[312511599,1705936239601,-213.43652609,0.0001,2]
[312511600,1705936239610,-7960.18375069,0.0001,2]
[312511601,1705936239619,-154.95351395,0.0001,2]
[312511602,1705936239629,-763.24520182,0.0001,2]
[312511603,1705936239638,-193.50366925,0.0001,2]
[312511604,1705936239647,-4928.23961202,0.0001,2]
[312511605,1705936239658,-309.78320129,0.0001,2]
[312511606,1705936239667,-563.75465003,0.0001,2]
[312511607,1705936239676,-282.3442528,0.0001,2]
[312511608,1705936239685,-212.966224,0.00011222,2]
[312511609,1705936239696,-2234.55897541,0.00012376,2]
[312511610,1705936239706,-155.46165684,0.000129,2]
[312511611,1705936239714,-248.75238779,0.000129,2]
[312511612,1705936239723,-248.75238772,0.000129,2]
[312511613,1705936239734,-154.95351395,0.0001369,2]
[312511614,1705936239744,-1507.6392133,0.00013698,2]
[312511615,1705936239753,-2663.134905,0.00013699,2]
[312511616,1705936239762,-3000.0,0.00013699,2]
[312511617,1705936239770,-270.6612929,0.00013699,2]
[312511618,1705936239779,-224.31517419,0.000137,2]
[312511619,1705936239788,-212.966224,0.00014225,2]
[312511620,1705936239798,-1266.7890629,0.00015,2]
[312511621,1705936239807,-687.96014716,0.00015,2]
[312511622,1705936239817,-154.95351395,0.00015,2]
[312511623,1705936239826,-154.95351395,0.00015,2]
[312511624,1705936239836,-2706.76932127,0.00015,2]
[312511625,1705936239845,-4580.55992462,0.0001631,2]
[312511626,1705936239854,-272.55691777,0.000165,2]
[312511627,1705936239864,-874.37604694,0.00017235,2]
[312511628,1705936239873,-2234.55897541,0.00017532,2]
[312511629,1705936239882,-248.75238772,0.00017673,2]
[312511630,1705936239892,-10537.96841435,0.00017898,2]
[312511631,1705936239901,-1582.38308236,0.00019,2]
[312511632,1705936239911,-162.786656,0.00019178,2]
[312511633,1705936239919,-167.784361,0.00019178,2]
[312511634,1705936239928,-1114.53942019,0.000195,2]
[312511635,1705936239937,-323.13003236,0.0002,2]
[312511636,1705936239948,-850.30063575,0.0002,2]
[312511637,1705936239957,-678.6288756,0.0002,2]
[312511638,1705936239966,-1197.97622761,0.0002,2]
[312511639,1705936239975,-667.24083957,0.0002,2]
[312511640,1705936239983,-225.59198109,0.0002,2]
[312511641,1705936239992,-154.95351395,0.0002,2]
[312511642,1705936240001,-177.94716191,0.0002,2]
[312511643,1705936240010,-154.95351395,0.0002,2]
[312511644,1705936240019,-154.95351395,0.0002,2]
[312511645,1705936240029,-154.95351395,0.0002,2]
[312511647,1705936240038,-229.59470486,0.0002,2]
[312511649,1705936240047,-2134.35553655,0.0002,5]
[312511651,1705936240056,-200.0,0.0002,2]
[312511652,1705936240066,-190.6950884,0.0002,2]
[312511653,1705936240075,-2663.134905,0.00020548,2]
[312511654,1705936240084,-327.51224259,0.00021,2]
[312511655,1705936240093,-232.97414454,0.00021,2]
[312511656,1705936240102,-8289.76804343,0.00021,2]
[312511658,1705936240111,-166.666666,0.00021918,2]
[312511660,1705936240120,-293.4468762,0.00022,4]